[Event "EIWCC 2017"]
[Site "Riga"]
[Date "2017.04.15"]
[Round "5"]
[White "Vidruska, Renate"]
[Black "Badelka, Olga"]
[Result "0-1"]
[ECO "B32"]
[WhiteElo "2093"]
[BlackElo "2362"]
[Annotator "NA"]
[PlyCount "66"]
[EventDate "2017.??.??"]
[EventType "swiss"]
[EventCountry "LAT"]
[SourceTitle "playchess.com"]
[Source "ChessBase"]
[SourceQuality "1"]
[TimeControl "40/5400+30:1800+30"]

1. e4 {[%emt 0:00:00]} c5 {[%emt 0:00:04]} 2. Nf3 {[%emt 0:00:00]} Nc6 {[%emt 0:00:04]} 3. d4 {[%emt 0:00:00]} cxd4 {[%emt 0:00:04]} 4. Nxd4 {[%emt 0:00:00]} e5 {[%emt 0:00:05]} 5. Nb5 {[%emt 0:00:20]} d6 {[%emt 0:00:05]} 6. a4 {[%emt 0:01:20]} Be6 {[%emt 0:00:16]} 7. N1c3 {[%emt 0:00:11]} a6 {[%emt 0:00:15]} 8. Na3 {[%emt 0:00:05]} Rc8 {[%emt 0:00:11]} 9. Be3 {[%emt 0:11:38]} Nf6 {[%emt 0:01:07]} 10. Be2 {[%emt 0:00:55]} Be7 {[%emt 0:02:11]} 11. O-O {[%emt 0:00:12]} O-O {[%emt 0:00:47]} 12. Nc4 {[%emt 0:09:25]} Nd4 {[%emt 0:10:08]} 13. Bxd4 {[%emt 0:05:45]} Bxc4 {[%emt 0:00:19]} 14. Bxc4 {[%emt 0:12:28]} Rxc4 {[%emt 0:00:06]} 15. Be3 {[%emt 0:00:02]} Rb4 {[%emt 0:03:49]} 16. b3 {[%emt 0:05:52]} Qc7 {[%emt 0:03:28]} 17. Nd5 {[%emt 0:08:19]} Nxd5 {[%emt 0:00:06]} 18. exd5 {[%emt 0:00:11]} Re4 {[%emt 0:09:26]} 19. Qd3 {[%emt 0:06:45]} f5 {[%emt 0:00:12]} 20. a5 {[%emt 0:01:11]} Rg4 {[%emt 0:02:47]} 21. f3 {[%emt 0:01:54]} Rg6 {[%emt 0:00:05]} 22. Ra4 {[%emt 0:04:09]} Bg5 {[%emt 0:07:30]} 23. Bb6 {[%emt 0:01:08]} Qe7 {[%emt 0:01:34]} 24. Bf2 {[%emt 0:09:17]} h5 {[%emt 0:04:31]} 25. Kh1 {[%emt 0:03:04]} h4 {[%emt 0:02:00]} 26. Re1 {[%emt 0:06:11]} Qf6 {[%emt 0:04:17]} 27. Qe2 {[%emt 0:06:50]} Qf7 {[%emt 0:13:06]} 28. Rd1 {[%emt 0:00:14]} e4 {[%emt 0:02:31]} 29. fxe4 {[%emt 0:03:30]} h3 {[%emt 0:06:30]} 30. Rg1 {[%emt 0:01:49]} fxe4 {[%emt 0:00:47]} 31. Qxe4 {[%emt 0:01:19]} Qxf2 {[%emt 0:00:35]} 32. Qxg6 {[%emt 0:00:05]} Qxg1+ {[%emt 0:00:12]} 33. Kxg1 {[%emt 0:00:03]} Be3+ {[%emt 0:00:02]} 0-1

[Event "EIWCC 2017"]
[Site "Riga"]
[Date "2017.04.15"]
[Round "5"]
[White "Arda, Cagil Irmak"]
[Black "Travkina, Anastasia"]
[Result "1/2-1/2"]
[ECO "B54"]
[WhiteElo "2089"]
[BlackElo "2287"]
[Annotator "ChessBase"]
[PlyCount "36"]
[EventDate "2017.??.??"]
[EventType "swiss"]
[EventCountry "LAT"]
[SourceTitle "playchess.com"]
[Source "ChessBase"]
[SourceQuality "1"]
[TimeControl "40/5400+30:1800+30"]

1. e4 {[%emt 0:00:09]} c5 {[%emt 0:00:05]} 2. Nf3 {[%emt 0:00:09]} d6 {[%emt 0:00:05]} 3. d4 {[%emt 0:00:13]} cxd4 {[%emt 0:00:06]} 4. Nxd4 {[%emt 0:00:04]} Nf6 {[%emt 0:00:04]} 5. f3 {[%emt 0:00:20]} e5 {[%emt 0:00:57]} 6. Nb3 {[%emt 0:00:06]} a5 {[%emt 0:00:57]} 7. Be3 {[%emt 0:02:52]} Be7 {[%emt 0:09:59]} 8. c4 {[%emt 0:00:26]} O-O {[%emt 0:01:16]} 9. Be2 {[%emt 0:01:19]} a4 {[%emt 0:01:21]} 10. N3d2 {[%emt 0:00:33]} Qa5 {[%emt 0:00:22]} 11. O-O {[%emt 0:02:09]} Be6 {[%emt 0:04:38]} 12. Qc2 {[%emt 0:02:26]} Nc6 {[%emt 0:10:38]} 13. Qc3 {[%emt 0:02:42]} Rfc8 {[%emt 0:16:28]} 14. Qxa5 {[%emt 0:03:46]} Nxa5 {[%emt 0:00:13]} 15. Na3 {[%emt 0:00:56]} Nd7 {[%emt 0:01:24]} 16. Rac1 {[%emt 0:01:15]} Nc5 {[%emt 0:12:34]} 17. Ndb1 {[%emt 0:04:42]} Nd7 {[%emt 0:03:34]} 18. Nd2 {[%emt 0:12:09]} Nc5 {[%emt 0:00:06]} 1/2-1/2

[Event "EIWCC 2017"]
[Site "Riga"]
[Date "2017.04.15"]
[Round "5"]
[White "Makka, Ioulia"]
[Black "Galojan, Lilit"]
[Result "0-1"]
[ECO "B86"]
[WhiteElo "2069"]
[BlackElo "2290"]
[Annotator "NA"]
[PlyCount "68"]
[EventDate "2017.??.??"]
[EventType "swiss"]
[EventCountry "LAT"]
[SourceTitle "playchess.com"]
[Source "ChessBase"]
[SourceQuality "1"]
[TimeControl "40/5400+30:1800+30"]

1. e4 {[%emt 0:00:00]} c5 {[%emt 0:00:05]} 2. Nf3 {[%emt 0:00:00]} e6 {[%emt 0:00:04]} 3. d4 {[%emt 0:00:00]} cxd4 {[%emt 0:00:06]} 4. Nxd4 {[%emt 0:00:00]} Nf6 {[%emt 0:00:22]} 5. Nc3 {[%emt 0:01:47]} d6 {[%emt 0:00:26]} 6. Bc4 {[%emt 0:11:20]} Qc7 {[%emt 0:05:28]} 7. Qe2 {[%emt 0:04:31]} a6 $11 {[%emt 0:03:58]} 8. a3 {[%emt 0:02:36]} Nc6 {[%emt 0:10:59]} 9. Nxc6 {[%emt 0:11:11]} bxc6 {[%emt 0:01:16]} 10. O-O {[%emt 0:05:18]} Be7 {[%emt 0:00:06]} 11. b3 {[%emt 0:03:54]} O-O {[%emt 0:04:16]} 12. Bb2 {[%emt 0:09:53]} d5 {[%emt 0:04:29]} 13. Bd3 {[%emt 0:01:13]} Bd6 {[%emt 0:28:46]} 14. h3 {[%emt 0:16:30]} e5 {[%emt 0:00:46]} 15. Qf3 {[%emt 0:04:20]} Be6 {[%emt 0:02:27]} 16. Rae1 {[%emt 0:03:02]} Rfe8 {[%emt 0:02:21]} 17. g4 {[%emt 0:03:06]} Qb7 {[%emt 0:09:46]} 18. g5 {[%emt 0:02:13]} Nd7 {[%emt 0:00:58]} 19. Na4 {[%emt 0:03:43]} Rf8 {[%emt 0:09:39]} 20. Qh5 {[%emt 0:09:03]} f5 {[%emt 0:00:08]} 21. gxf6 {[%emt 0:01:03]} Nxf6 {[%emt 0:01:11]} 22. Qh4 {[%emt 0:00:09]} dxe4 {[%emt 0:03:10]} 23. Bxe4 {[%emt 0:00:33]} Nxe4 {[%emt 0:00:09]} 24. Rxe4 {[%emt 0:00:36]} Rf6 {[%emt 0:07:53]} 25. Bxe5 {[%emt 0:02:17]} Rg6+ {[%emt 0:02:26]} 26. Bg3 {[%emt 0:01:04]} Qf7 {[%emt 0:01:07]} 27. Rd1 {[%emt 0:01:49]} Bd5 {[%emt 0:00:54]} 28. Re3 {[%emt 0:01:02]} Rf8 {[%emt 0:00:17]} 29. Rf1 {[%emt 0:01:02]} Bxg3 {[%emt 0:00:28]} 30. Rxg3 {[%emt 0:00:37]} Qf3 {[%emt 0:00:14]} 31. Kh2 {[%emt 0:00:59]} Qg2+ {[%emt 0:00:07]} 32. Rxg2 {[%emt 0:00:11]} Rxg2+ {[%emt 0:00:03]} 33. Kh1 {[%emt 0:00:06]} Rgxf2+ {[%emt 0:00:19]} 34. Kg1 {[%emt 0:00:35]} Rg2+ {[%emt 0:00:03]} 0-1

[Event "EIWCC 2017"]
[Site "Riga"]
[Date "2017.04.15"]
[Round "5"]
[White "Sinitsina, Anastassia"]
[Black "Golubenko, Valentina"]
[Result "0-1"]
[ECO "C10"]
[WhiteElo "2052"]
[BlackElo "2271"]
[Annotator "NA"]
[PlyCount "74"]
[EventDate "2017.??.??"]
[EventType "swiss"]
[EventCountry "LAT"]
[SourceTitle "playchess.com"]
[Source "ChessBase"]
[SourceQuality "1"]
[TimeControl "40/5400+30:1800+30"]

1. e4 {[%emt 0:00:00]} e6 {[%emt 0:00:04]} 2. d4 {[%emt 0:00:05]} d5 {[%emt 0:00:05]} 3. Nc3 {[%emt 0:00:29]} Nc6 {[%emt 0:00:28]} 4. Nf3 {[%emt 0:01:16]} Nf6 {[%emt 0:00:39]} 5. e5 {[%emt 0:01:50]} Ne4 {[%emt 0:00:46]} 6. Bd3 {[%emt 0:02:20]} Bb4 $11 {[%emt 0:01:04] LiveBook: 261 Games} 7. Bd2 {[%emt 0:00:51]} Nxd2 {[%emt 0:00:35]} 8. Qxd2 {[%emt 0:00:12]} f6 {[%emt 0:00:39]} 9. a3 {[%emt 0:01:42]} Bxc3 {[%emt 0:01:52]} 10. Qxc3 {[%emt 0:00:39]} O-O {[%emt 0:05:46]} 11. O-O {[%emt 0:05:33]} fxe5 {[%emt 0:03:46]} 12. Nxe5 {[%emt 0:01:36]} Nxe5 {[%emt 0:01:50]} 13. dxe5 {[%emt 0:00:09]} b6 {[%emt 0:02:54]} 14. b4 {[%emt 0:06:53]} Rf4 {[%emt 0:08:34]} 15. g3 {[%emt 0:04:10]} Rf8 {[%emt 0:10:57]} 16. f4 {[%emt 0:03:29]} Qe7 {[%emt 0:04:42]} 17. b5 {[%emt 0:03:47]} Bb7 {[%emt 0:01:48]} 18. Qd4 {[%emt 0:03:42]} g6 {[%emt 0:06:25]} 19. a4 {[%emt 0:02:21]} a5 {[%emt 0:04:49]} 20. Kg2 {[%emt 0:09:28]} Rac8 {[%emt 0:03:20]} 21. Rab1 {[%emt 0:01:49]} Rfd8 {[%emt 0:06:27]} 22. Kf2 {[%emt 0:06:04]} Qf8 {[%emt 0:04:17]} 23. h4 {[%emt 0:03:17]} Rd7 {[%emt 0:02:19]} 24. h5 {[%emt 0:03:53]} gxh5 {[%emt 0:01:13]} 25. Rh1 {[%emt 0:00:13]} Qc5 {[%emt 0:07:52]} 26. c3 {[%emt 0:02:24]} Qa3 {[%emt 0:01:33]} 27. Rxh5 {[%emt 0:04:11]} Qa2+ {[%emt 0:00:09]} 28. Kf3 {[%emt 0:00:45]} c5 {[%emt 0:03:02]} 29. bxc6 {[%emt 0:00:25]} Rxc6 {[%emt 0:00:22]} 30. Rg5+ {[%emt 0:11:04]} Kf8 {[%emt 0:00:42]} 31. Rxb6 {[%emt 0:01:30]} Rxb6 {[%emt 0:12:05]} 32. Qxb6 {[%emt 0:00:34]} d4+ {[%emt 0:00:19]} 33. Kg4 {[%emt 0:00:31]} Qd5 {[%emt 0:01:29]} 34. Qb1 {[%emt 0:02:41]} dxc3 {[%emt 0:01:36]} 35. Bc2 {[%emt 0:01:57]} Qg2 {[%emt 0:01:21]} 36. Bd1 {[%emt 0:03:36]} c2 {[%emt 0:01:06]} 37. Qxc2 {[%emt 0:02:37]} Bf3+ {[%emt 0:00:24]} 0-1

[Event "EIWCC 2017"]
[Site "Riga"]
[Date "2017.04.15"]
[Round "5"]
[White "Otikova, Elina"]
[Black "Mamedjarova, Turkan"]
[Result "0-1"]
[ECO "C54"]
[WhiteElo "2049"]
[BlackElo "2267"]
[Annotator "ChessBase"]
[PlyCount "162"]
[EventDate "2017.??.??"]
[EventType "swiss"]
[EventCountry "LAT"]
[SourceTitle "playchess.com"]
[Source "ChessBase"]
[SourceQuality "1"]
[TimeControl "40/5400+30:1800+30"]

1. e4 {[%emt 0:00:00]} e5 {[%emt 0:00:07]} 2. Nf3 {[%emt 0:00:00]} Nc6 {[%emt 0:00:05]} 3. Bc4 {[%emt 0:00:03]} Bc5 {[%emt 0:00:06]} 4. c3 {[%emt 0:00:14]} Nf6 {[%emt 0:00:10]} 5. d3 {[%emt 0:00:15]} d6 {[%emt 0:00:26]} 6. a4 {[%emt 0:00:26]} a5 {[%emt 0:01:17]} 7. Na3 {[%emt 0:00:23]} O-O {[%emt 0:02:15]} 8. Nc2 {[%emt 0:01:42]} Ba7 {[%emt 0:10:38]} 9. O-O {[%emt 0:01:40]} Ne7 {[%emt 0:05:02]} 10. Ne3 {[%emt 0:10:14]} c6 {[%emt 0:02:10]} 11. Bb3 {[%emt 0:03:42]} Ng6 {[%emt 0:06:25]} 12. Nc4 {[%emt 0:06:16]} h6 {[%emt 0:07:30]} 13. h3 {[%emt 0:07:20]} Bb8 {[%emt 0:10:07]} 14. Re1 {[%emt 0:20:47]} Re8 {[%emt 0:02:59]} 15. Be3 {[%emt 0:01:28]} Bc7 {[%emt 0:00:15]} 16. d4 {[%emt 0:07:14]} exd4 {[%emt 0:03:49]} 17. Bxd4 {[%emt 0:02:13]} Nxe4 {[%emt 0:01:57]} 18. Ncd2 {[%emt 0:07:30]} d5 {[%emt 0:02:29]} 19. Nxe4 {[%emt 0:01:44]} dxe4 {[%emt 0:07:58]} 20. Nd2 {[%emt 0:00:42]} Qd6 {[%emt 0:02:39]} 21. g3 {[%emt 0:02:24]} e3 {[%emt 0:17:03]} 22. Rxe3 {[%emt 0:00:19]} Rxe3 {[%emt 0:00:22]} 23. Bxe3 {[%emt 0:00:07]} Bxh3 {[%emt 0:00:24]} 24. Qh5 {[%emt 0:02:44]} Be6 {[%emt 0:00:22]} 25. Bc2 {[%emt 0:05:22]} Qd5 {[%emt 0:00:26]} 26. Bxg6 {[%emt 0:00:42]} fxg6 {[%emt 0:00:02]} 27. Qxg6 {[%emt 0:00:48]} Bf5 {[%emt 0:02:14]} 28. Qh5 {[%emt 0:00:12]} Rf8 {[%emt 0:01:58]} 29. Qh4 {[%emt 0:05:10]} Re8 {[%emt 0:01:34]} 30. Qd4 {[%emt 0:02:10]} Qf7 {[%emt 0:00:23]} 31. Re1 {[%emt 0:02:01]} Qg6 {[%emt 0:01:08]} 32. Qh4 {[%emt 0:00:56]} Bg4 {[%emt 0:00:24]} 33. Kg2 {[%emt 0:04:41]} Bb6 {[%emt 0:05:28]} 34. Nf1 {[%emt 0:02:25]} Bd8 {[%emt 0:01:56]} 35. Qh2 {[%emt 0:00:33]} Qe4+ {[%emt 0:00:48]} 36. Kg1 {[%emt 0:00:08]} Qxa4 {[%emt 0:00:38]} 37. f4 {[%emt 0:01:35]} Qb5 {[%emt 0:01:12]} 38. Qd2 {[%emt 0:00:23]} Bb6 {[%emt 0:01:29]} 39. Kg2 {[%emt 0:00:40]} Bc7 {[%emt 0:01:50]} 40. Nh2 {[%emt 0:00:00]} Bf5 {[%emt 0:00:35]} 41. Nf3 {[%emt 0:03:27]} Bg4 {[%emt 0:07:11]} 42. Bd4 {[%emt 0:03:53]} Rxe1 {[%emt 0:02:20]} 43. Nxe1 {[%emt 0:03:02]} Qd5+ {[%emt 0:00:31]} 44. Kg1 {[%emt 0:00:57]} Bf5 {[%emt 0:04:11]} 45. Qe2 {[%emt 0:01:51]} c5 {[%emt 0:02:22]} 46. Bf2 {[%emt 0:00:15]} Kh7 {[%emt 0:02:00]} 47. c4 {[%emt 0:03:10]} Qc6 {[%emt 0:00:48]} 48. Nd3 {[%emt 0:01:34]} b6 {[%emt 0:00:23]} 49. b3 {[%emt 0:00:49]} a4 {[%emt 0:00:36]} 50. bxa4 {[%emt 0:00:48]} Qxa4 {[%emt 0:01:15]} 51. g4 {[%emt 0:00:24]} Qa1+ {[%emt 0:01:15]} 52. Kg2 {[%emt 0:00:41]} Qa8+ {[%emt 0:01:51]} 53. Kg1 {[%emt 0:02:15]} Qe4 {[%emt 0:01:03]} 54. Qxe4 {[%emt 0:02:04]} Bxe4 {[%emt 0:00:01]} 55. Ne5 {[%emt 0:00:17]} Bxe5 {[%emt 0:01:12]} 56. fxe5 {[%emt 0:00:02]} Bd3 {[%emt 0:05:30]} 57. Kg2 {[%emt 0:06:13]} Kg8 {[%emt 0:02:06]} 58. Kf3 {[%emt 0:02:49]} Kf7 {[%emt 0:00:43]} 59. Ke3 {[%emt 0:04:18]} Bxc4 {[%emt 0:00:05]} 60. Ke4 {[%emt 0:00:10]} Ke6 {[%emt 0:02:24]} 61. g5 {[%emt 0:00:41]} hxg5 {[%emt 0:00:36]} 62. Bg3 {[%emt 0:02:53]} Bd5+ {[%emt 0:01:07]} 63. Kd3 {[%emt 0:00:06]} Kf5 {[%emt 0:00:53]} 64. e6 {[%emt 0:00:42]} Kxe6 {[%emt 0:00:37]} 65. Bc7 {[%emt 0:00:48]} b5 {[%emt 0:00:06]} 66. Bb6 {[%emt 0:00:23]} Kd6 {[%emt 0:00:12]} 67. Bd8 {[%emt 0:00:42]} g4 {[%emt 0:00:20]} 68. Bh4 {[%emt 0:00:05]} Bf3 {[%emt 0:00:16]} 69. Be1 {[%emt 0:00:24]} Kd5 {[%emt 0:00:11]} 70. Kc3 {[%emt 0:00:14]} b4+ {[%emt 0:01:18]} 71. Kb3 {[%emt 0:01:29]} Bd1+ {[%emt 0:00:11]} 72. Kb2 {[%emt 0:00:08]} Ke4 {[%emt 0:00:20]} 73. Bf2 {[%emt 0:00:40]} Kd5 {[%emt 0:01:19]} 74. Be1 {[%emt 0:00:38]} Kc4 {[%emt 0:00:06]} 75. Bf2 {[%emt 0:00:22]} Kb5 {[%emt 0:00:26]} 76. Kc1 {[%emt 0:00:22]} Bf3 {[%emt 0:00:08]} 77. Kb2 {[%emt 0:00:41]} c4 {[%emt 0:00:12]} 78. Kc1 {[%emt 0:00:21]} c3 {[%emt 0:00:16]} 79. Kc2 {[%emt 0:00:43]} Kc4 {[%emt 0:00:09]} 80. Bg3 {[%emt 0:00:28]} Be4+ {[%emt 0:00:11]} 81. Kc1 {[%emt 0:00:08]} b3 {[%emt 0:00:21]} 0-1

[Event "EIWCC 2017"]
[Site "Riga"]
[Date "2017.04.15"]
[Round "5"]
[White "Kouvatsou, Maria"]
[Black "Stetsko, Lanita"]
[Result "0-1"]
[ECO "C50"]
[WhiteElo "2016"]
[BlackElo "2226"]
[Annotator "NA"]
[PlyCount "94"]
[EventDate "2017.??.??"]
[EventType "swiss"]
[EventCountry "LAT"]
[SourceTitle "playchess.com"]
[Source "ChessBase"]
[SourceQuality "1"]
[TimeControl "40/5400+30:1800+30"]

1. e4 {[%emt 0:00:00]} e5 {[%emt 0:00:06]} 2. Nf3 {[%emt 0:00:03]} Nc6 {[%emt 0:00:06]} 3. Bc4 {[%emt 0:00:06]} Bc5 {[%emt 0:00:08]} 4. O-O {[%emt 0:00:25]} Nf6 {[%emt 0:00:55]} 5. d3 {[%emt 0:00:06]} d6 {[%emt 0:00:50]} 6. c3 {[%emt 0:01:16]} O-O {[%emt 0:04:54]} 7. b4 {[%emt 0:02:47]} Bb6 {[%emt 0:00:06]} 8. a4 {[%emt 0:00:05]} a5 {[%emt 0:00:31]} 9. b5 {[%emt 0:00:46]} Ne7 {[%emt 0:00:13]} 10. Nbd2 {[%emt 0:04:41]} c6 {[%emt 0:04:50]} 11. Ba2 {[%emt 0:09:14]} Ng6 {[%emt 0:00:46]} 12. Nc4 {[%emt 0:02:20]} Bc7 {[%emt 0:01:37]} 13. Re1 {[%emt 0:01:51]} Re8 {[%emt 0:02:07]} 14. Ne3 $15 {[%emt 0:11:40]} d5 {[%emt 0:06:25]} 15. exd5 {[%emt 0:04:55]} cxd5 {[%emt 0:14:15]} 16. c4 {[%emt 0:12:55]} d4 {[%emt 0:09:13]} 17. Nd5 {[%emt 0:00:53]} Nxd5 {[%emt 0:04:19]} 18. cxd5 {[%emt 0:00:06]} h6 {[%emt 0:09:05]} 19. Bc4 {[%emt 0:15:35]} Bd6 {[%emt 0:10:16]} 20. Ra2 {[%emt 0:06:25]} Bg4 {[%emt 0:01:17]} 21. h3 {[%emt 0:00:31]} Bd7 {[%emt 0:00:10]} 22. Nh2 {[%emt 0:03:36]} e4 {[%emt 0:01:53]} 23. Nf1 {[%emt 0:01:47]} Rc8 {[%emt 0:02:34]} 24. Rc2 {[%emt 0:04:13]} Bf5 {[%emt 0:08:17]} 25. Rce2 {[%emt 0:00:40]} Nh4 {[%emt 0:08:35]} 26. Ng3 {[%emt 0:04:05]} e3 {[%emt 0:02:59]} 27. Nxf5 {[%emt 0:02:17]} Nxf5 {[%emt 0:00:02]} 28. fxe3 {[%emt 0:00:45]} dxe3 {[%emt 0:04:24]} 29. g4 {[%emt 0:08:24]} Qg5 {[%emt 0:00:10]} 30. Rg2 {[%emt 0:00:13]} Nh4 {[%emt 0:00:28]} 31. Rc2 {[%emt 0:00:47]} Qf4 {[%emt 0:00:36]} 32. Ree2 {[%emt 0:01:07]} Qg3+ {[%emt 0:00:18]} 33. Kh1 {[%emt 0:00:17]} Qxh3+ {[%emt 0:00:19]} 34. Rh2 {[%emt 0:00:45]} Bxh2 {[%emt 0:00:07]} 35. Rxh2 {[%emt 0:00:04]} Qf3+ {[%emt 0:00:32]} 36. Qxf3 {[%emt 0:00:01]} Nxf3 {[%emt 0:00:05]} 37. Re2 {[%emt 0:00:35]} Ne5 {[%emt 0:02:02]} 38. d6 {[%emt 0:00:33]} Rcd8 {[%emt 0:00:59]} 39. Rxe3 {[%emt 0:00:26]} Nxc4 {[%emt 0:00:36]} 40. dxc4 {[%emt 0:00:00]} Rxe3 {[%emt 0:00:07]} 41. Bxe3 {[%emt 0:00:49]} Rxd6 {[%emt 0:00:03]} 42. c5 {[%emt 0:05:05]} Rd3 {[%emt 0:00:45]} 43. Bf4 {[%emt 0:01:47]} Rd4 {[%emt 0:00:40]} 44. Bd6 {[%emt 0:01:44]} Rxa4 {[%emt 0:00:30]} 45. c6 {[%emt 0:00:42]} bxc6 {[%emt 0:00:05]} 46. bxc6 {[%emt 0:00:11]} Rc4 {[%emt 0:00:08]} 47. c7 {[%emt 0:00:04]} a4 {[%emt 0:00:09]} 0-1

[Event "EIWCC 2017"]
[Site "Riga"]
[Date "2017.04.15"]
[Round "5"]
[White "Heinatz, Maria"]
[Black "Ambartsumova, Karina"]
[Result "0-1"]
[ECO "B07"]
[WhiteElo "1990"]
[BlackElo "2282"]
[Annotator "NA"]
[PlyCount "94"]
[EventDate "2017.??.??"]
[EventType "swiss"]
[EventCountry "LAT"]
[SourceTitle "playchess.com"]
[Source "ChessBase"]
[SourceQuality "1"]
[TimeControl "40/5400+30:1800+30"]

1. e4 {[%emt 0:00:00]} d6 {[%emt 0:00:21]} 2. d4 {[%emt 0:00:00]} Nf6 {[%emt 0:00:17]} 3. Nc3 {[%emt 0:00:21]} Nbd7 {[%emt 0:01:16]} 4. Nf3 {[%emt 0:02:48]} e5 {[%emt 0:00:08]} 5. Bc4 {[%emt 0:01:24]} Be7 {[%emt 0:00:20]} 6. O-O {[%emt 0:00:38]} O-O {[%emt 0:00:15]} 7. Re1 {[%emt 0:02:19]} a6 {[%emt 0:03:02]} 8. a4 {[%emt 0:01:32]} b6 {[%emt 0:01:05]} 9. Bg5 {[%emt 0:06:35]} c6 {[%emt 0:13:27]} 10. Qd2 {[%emt 0:07:19]} Bb7 $14 {[%emt 0:06:58]} 11. Ba2 {[%emt 0:03:31] LiveBook: 5 Games} b5 {[%emt 0:02:25]} 12. Rad1 {[%emt 0:05:06]} Qc7 {[%emt 0:21:32]} 13. Nh4 {[%emt 0:07:14]} g6 {[%emt 0:14:28]} 14. Bh6 {[%emt 0:14:11]} exd4 {[%emt 0:04:18]} 15. Qxd4 {[%emt 0:01:11]} Rfe8 {[%emt 0:01:34]} 16. Bg5 {[%emt 0:10:38]} c5 {[%emt 0:06:39]} 17. Qd2 {[%emt 0:01:02]} b4 {[%emt 0:01:33]} 18. Nd5 {[%emt 0:01:49]} Bxd5 {[%emt 0:02:59]} 19. Bxd5 {[%emt 0:00:44]} Nxd5 {[%emt 0:00:06]} 20. exd5 {[%emt 0:00:35]} Bf8 {[%emt 0:01:14]} 21. Bh6 {[%emt 0:03:49]} Bxh6 {[%emt 0:07:50]} 22. Qxh6 {[%emt 0:00:02]} Nf8 {[%emt 0:00:09]} 23. b3 {[%emt 0:03:36]} Re7 {[%emt 0:01:46]} 24. Qg5 {[%emt 0:04:48]} Rae8 {[%emt 0:00:10]} 25. Kf1 {[%emt 0:01:11]} Re5 {[%emt 0:01:23]} 26. Qf6 {[%emt 0:01:01]} Nd7 {[%emt 0:00:55]} 27. Qf3 {[%emt 0:00:38]} Qb7 {[%emt 0:05:05]} 28. Rxe5 {[%emt 0:05:48]} Rxe5 {[%emt 0:00:01]} 29. Rd3 {[%emt 0:01:27]} Kg7 {[%emt 0:01:16]} 30. Qd1 {[%emt 0:01:15]} Nf6 {[%emt 0:00:23]} 31. f4 {[%emt 0:00:37]} Rxd5 {[%emt 0:00:34]} 32. Qf3 {[%emt 0:00:18]} a5 {[%emt 0:02:01]} 33. g4 {[%emt 0:01:38]} Qa6 {[%emt 0:00:33]} 34. g5 {[%emt 0:00:36]} Ng4 {[%emt 0:00:01]} 35. Kg1 {[%emt 0:04:52]} Rxd3 {[%emt 0:00:13]} 36. cxd3 {[%emt 0:00:05]} Qc8 {[%emt 0:01:28]} 37. h3 {[%emt 0:00:20]} c4 {[%emt 0:00:03]} 38. dxc4 {[%emt 0:01:46]} Qc5+ {[%emt 0:00:03]} 39. Kh1 {[%emt 0:00:52]} Ne3 {[%emt 0:00:19]} 40. Ng2 {[%emt 0:00:00]} Nf5 {[%emt 0:01:13]} 41. Ne1 {[%emt 0:07:00]} Qd4 {[%emt 0:03:46]} 42. Nd3 {[%emt 0:12:22]} Qc3 {[%emt 0:11:23]} 43. Qd5 {[%emt 0:00:10]} Qxb3 {[%emt 0:00:48]} 44. Ne5 {[%emt 0:00:54]} Qxh3+ {[%emt 0:00:33]} 45. Kg1 {[%emt 0:00:04]} Qg3+ {[%emt 0:00:20]} 46. Kh1 {[%emt 0:00:10]} Qe1+ {[%emt 0:00:08]} 47. Kh2 {[%emt 0:00:28]} Qf2+ {[%emt 0:00:11]} 0-1

[Event "EIWCC 2017"]
[Site "Riga"]
[Date "2017.04.15"]
[Round "5"]
[White "Limanovska, Elizabete"]
[Black "Balaian, Alina"]
[Result "0-1"]
[ECO "C07"]
[WhiteElo "1990"]
[BlackElo "2229"]
[Annotator "NA"]
[PlyCount "78"]
[EventDate "2017.??.??"]
[EventType "swiss"]
[EventCountry "LAT"]
[SourceTitle "playchess.com"]
[Source "ChessBase"]
[SourceQuality "1"]
[TimeControl "40/5400+30:1800+30"]

1. e4 {[%emt 0:00:00]} e6 {[%emt 0:00:05]} 2. d4 {[%emt 0:00:00]} d5 {[%emt 0:00:05]} 3. Nd2 {[%emt 0:00:00]} c5 {[%emt 0:00:08]} 4. exd5 {[%emt 0:00:00]} Qxd5 {[%emt 0:00:05]} 5. Ngf3 {[%emt 0:00:02]} cxd4 {[%emt 0:00:10]} 6. Bc4 {[%emt 0:00:05]} Qd6 {[%emt 0:00:04]} 7. O-O {[%emt 0:00:22]} Nf6 {[%emt 0:00:12]} 8. Nb3 {[%emt 0:00:33]} Nc6 {[%emt 0:00:11]} 9. Nbxd4 {[%emt 0:00:34]} Nxd4 {[%emt 0:00:07]} 10. Nxd4 {[%emt 0:00:19]} a6 {[%emt 0:00:07]} 11. Bb3 {[%emt 0:02:18]} Qc7 {[%emt 0:00:38]} 12. Re1 {[%emt 0:03:00]} Bd6 {[%emt 0:00:15]} 13. Nf5 {[%emt 0:10:55]} Bxh2+ {[%emt 0:00:10]} 14. Kh1 {[%emt 0:00:08]} O-O {[%emt 0:00:05]} 15. Nxg7 {[%emt 0:02:54]} Rd8 {[%emt 0:00:07]} 16. Qf3 {[%emt 0:03:57]} Kxg7 {[%emt 0:00:10]} 17. Bh6+ {[%emt 0:06:38]} Kg6 {[%emt 0:00:08]} 18. c3 {[%emt 0:07:04]} Nh5 {[%emt 0:00:21]} 19. Re4 $11 {[%emt 0:27:20] LiveBook: 4 Games} (19. Bc1 $14 f5 20. g3 Bxg3 21. fxg3 (21. Rg1 $2 b5 22. Rxg3+ Nxg3+ 23. Qxg3+ Qxg3 24. fxg3 a5 $19)) 19... f5 $2 {[%emt 0:02:58]} (19... Kxh6 $11 {and Black has nothing to worry.} 20. Rh4 Qe5 21. Rxh2 Bd7 22. Qxf7 Bc6) 20. Rh4 {[%emt 0:05:51]} Nf6 {[%emt 0:00:17]} 21. Rxh2 {[%emt 0:02:55]} Ng4 {[%emt 0:16:50]} 22. Rh3 {[%emt 0:01:17]} Rd3 {[%emt 0:17:41]} 23. Bf4 {[%emt 0:06:44]} Rxf3 {[%emt 0:06:26]} 24. Bxc7 {[%emt 0:00:15]} Rxf2 {[%emt 0:02:06]} 25. Rd3 {[%emt 0:01:56]} b5 {[%emt 0:02:19]} 26. Rd6 {[%emt 0:03:47]} Rxb2 {[%emt 0:05:39]} 27. Bd5 {[%emt 0:02:10]} Ra7 {[%emt 0:01:44]} 28. Bb6 {[%emt 0:00:13]} Re7 {[%emt 0:04:45]} 29. Re1 {[%emt 0:03:16]} Kh5 {[%emt 0:05:46]} 30. Bc6 {[%emt 0:05:31]} e5 {[%emt 0:06:31]} 31. a4 {[%emt 0:01:31]} bxa4 {[%emt 0:01:43]} 32. Bc5 {[%emt 0:00:22]} Re6 {[%emt 0:02:21]} 33. Rxe6 {[%emt 0:01:38]} Bxe6 {[%emt 0:00:02]} 34. Be8+ {[%emt 0:00:08]} Kh4 {[%emt 0:00:53]} 35. Be7+ {[%emt 0:00:33]} Kg3 {[%emt 0:00:09]} 36. Bc6 {[%emt 0:00:42]} Bc4 {[%emt 0:08:46]} 37. Bf3 {[%emt 0:00:32]} Nf2+ {[%emt 0:01:25]} 38. Kg1 {[%emt 0:00:03]} Nd3 {[%emt 0:01:18]} 39. Ra1 {[%emt 0:00:31]} Rc2 {[%emt 0:04:16]} 0-1